bitfinex/quotes_BTCUSD_20240810
["timestamp","ask_amount","ask_price","bid_price","bid_amount"]
[1723303471237,0.002831,60708.0,60707.0,1.35586116]
[1723303471435,0.002831,60708.0,60707.0,1.52058616]
[1723303471634,0.002831,60708.0,60707.0,1.53058616]
[1723303471900,0.001831,60708.0,60707.0,1.51458616]
[1723303472258,0.002831,60708.0,60707.0,1.52858616]
[1723303472696,0.002831,60708.0,60707.0,1.51991265]
[1723303472894,0.001831,60708.0,60707.0,1.52258616]
[1723303473210,0.002831,60708.0,60707.0,1.53658616]
[1723303474000,0.002831,60708.0,60707.0,1.52791265]
[1723303475160,0.002831,60708.0,60707.0,1.52821964]
[1723303475662,0.002831,60708.0,60707.0,1.53689315]
[1723303475845,0.002831,60708.0,60707.0,1.52821964]
[1723303476508,0.002831,60708.0,60707.0,1.40932192]
[1723303476706,0.002831,60708.0,60707.0,1.52799542]
[1723303476921,0.002831,60708.0,60707.0,1.52802049]
[1723303478008,0.002831,60708.0,60707.0,1.536694]
[1723303478412,0.002831,60708.0,60707.0,1.53686803]
[1723303480960,0.002831,60708.0,60707.0,1.53778213]
[1723303481867,0.002831,60708.0,60707.0,1.52910862]
[1723303482069,0.002831,60708.0,60707.0,1.53778213]
[1723303483923,0.002831,60708.0,60707.0,1.61658213]
[1723303485424,0.002831,60708.0,60707.0,1.61668902]
[1723303485938,0.002831,60708.0,60707.0,1.45196402]
[1723303486144,0.002831,60708.0,60707.0,1.28706358]
[1723303486429,0.002831,60708.0,60707.0,0.81937658]
[1723303486828,0.0063599,60708.0,60707.0,0.70057253]
[1723303489545,0.0063599,60708.0,60707.0,0.78293453]
[1723303489890,0.002831,60708.0,60707.0,0.94765953]
[1723303490109,0.002831,60708.0,60707.0,1.02645953]
[1723303490311,0.002831,60708.0,60707.0,1.43864814]
[1723303490645,0.002831,60708.0,60707.0,1.44732165]
[1723303491117,0.002831,60708.0,60707.0,1.61204665]
[1723303491786,0.002831,60708.0,60707.0,1.53324665]
[1723303491965,0.002831,60708.0,60707.0,1.52457314]
[1723303492495,0.002831,60708.0,60707.0,1.52455353]
[1723303492835,0.002831,60708.0,60707.0,1.53455353]
[1723303495583,0.002831,60708.0,60707.0,1.54322704]
[1723303495784,0.002831,60708.0,60707.0,1.42480953]
[1723303495992,0.002831,60708.0,60707.0,1.54323199]
[1723303496447,0.002831,60708.0,60707.0,1.53455845]
[1723303496622,0.002831,60708.0,60707.0,1.54323196]
[1723303497775,0.002831,60708.0,60707.0,1.54438019]
[1723303497974,0.002831,60708.0,60707.0,1.53570668]
[1723303498111,0.002831,60708.0,60707.0,1.54438019]
[1723303498821,0.002831,60708.0,60707.0,1.53570668]
[1723303499024,0.002831,60708.0,60707.0,1.54438019]
[1723303499571,0.002831,60708.0,60707.0,1.54445651]
[1723303499770,0.002831,60708.0,60707.0,1.79381791]
[1723303500290,0.002831,60708.0,60707.0,1.98525497]
[1723303500489,0.002831,60708.0,60707.0,1.97658146]
[1723303500689,0.002831,60708.0,60707.0,1.98525846]
[1723303502230,0.002831,60708.0,60707.0,1.98470491]
[1723303502906,0.002831,60708.0,60707.0,1.47412741]
[1723303503104,0.002831,60708.0,60707.0,1.98480063]
[1723303503352,0.002831,60708.0,60707.0,1.99480063]
[1723303503470,0.002831,60708.0,60707.0,1.98480063]
[1723303503667,0.002831,60708.0,60707.0,1.97480063]
[1723303503867,0.002831,60708.0,60707.0,1.92548275]
[1723303504075,0.002831,60708.0,60707.0,1.60261931]
[1723303504520,0.002831,60708.0,60707.0,1.60231182]
[1723303504915,0.002831,60708.0,60707.0,1.61231182]
[1723303505111,0.002831,60708.0,60707.0,1.60231182]
[1723303505717,0.002831,60708.0,60707.0,1.53362608]
[1723303505967,0.002831,60708.0,60707.0,1.60201817]
[1723303506161,0.002831,60708.0,60707.0,1.53367328]
[1723303507360,0.002831,60708.0,60707.0,1.41480953]
[1723303507567,0.002831,60708.0,60707.0,1.533711]
[1723303508368,0.002831,60708.0,60707.0,1.53373941]
[1723303509359,0.002831,60708.0,60707.0,1.53375326]
[1723303509922,0.002831,60708.0,60707.0,1.36902826]
[1723303510367,0.002831,60708.0,60707.0,1.30752826]
[1723303510892,0.002831,60708.0,60707.0,0.81951626]
[1723303511095,0.002831,60708.0,60707.0,0.90187826]
[1723303512967,0.002831,60708.0,60707.0,0.9015638]
[1723303513327,0.002831,60708.0,60707.0,1.0662888]
[1723303513564,0.002831,60708.0,60707.0,1.3742138]
[1723303514707,0.002831,60708.0,60707.0,0.9015638]
[1723303515127,0.002831,60708.0,60707.0,0.8192018]
[1723303515304,0.331814,60708.0,60707.0,0.65538688]
[1723303515519,0.56549473,60708.0,60707.0,0.53675761]
[1723303516969,0.56549473,60708.0,60707.0,0.5280841]
[1723303518159,0.39977273,60708.0,60707.0,0.5140841]
[1723303518352,0.39977273,60708.0,60707.0,0.52275761]
[1723303518556,0.39877273,60708.0,60707.0,0.50875761]
[1723303518758,0.39877273,60708.0,60707.0,0.51175761]
[1723303518965,0.39877273,60708.0,60707.0,0.5030841]
[1723303519368,0.39877273,60708.0,60707.0,0.5000841]
[1723303519581,0.39877273,60708.0,60707.0,0.5030841]
[1723303520325,0.39877273,60708.0,60707.0,0.5000841]
[1723303520450,0.00418973,60708.0,60707.0,0.5030841]
[1723303520650,0.00418973,60708.0,60707.0,0.51475761]
[1723303520893,0.00418973,60708.0,60707.0,0.51175761]
[1723303521318,0.00418973,60708.0,60707.0,0.51475761]
[1723303521514,0.00418973,60708.0,60707.0,0.59711961]
[1723303521754,0.00418973,60708.0,60707.0,1.24708453]
[1723303521913,0.00418973,60708.0,60707.0,1.24408453]
[1723303522117,0.000831,60708.0,60707.0,1.24408453]
[1723303522382,0.000831,60708.0,60707.0,1.43126409]
[1723303522532,0.000831,60708.0,60707.0,1.26653909]
[1723303522733,0.000831,60708.0,60707.0,1.12033909]
[1723303522936,0.000831,60708.0,60707.0,1.00155953]
[1723303523112,0.000831,60708.0,60707.0,1.00355953]
[1723303523318,0.000831,60708.0,60707.0,1.12233058]
[1723303523582,0.000831,60708.0,60707.0,1.19912907]
[1723303523780,0.000831,60708.0,60707.0,1.19512907]
[1723303523976,0.000831,60708.0,60707.0,1.37385407]
[1723303524139,0.000831,60708.0,60707.0,1.38785407]
[1723303525242,0.000831,60708.0,60707.0,1.22312907]
[1723303525425,0.000831,60708.0,60707.0,1.38785407]
[1723303525872,0.000831,60708.0,60707.0,1.30895407]
[1723303526249,0.000831,60708.0,60707.0,1.29495407]
[1723303527100,0.000831,60708.0,60707.0,1.30895407]
[1723303527672,0.000831,60708.0,60707.0,1.19018453]
[1723303527995,0.000831,60708.0,60707.0,1.29492195]
[1723303528194,0.000831,60708.0,60707.0,1.14419695]
[1723303528581,0.000831,60708.0,60707.0,1.13019695]
[1723303528996,0.000831,60708.0,60707.0,1.14419695]
[1723303529399,0.000831,60708.0,60707.0,1.13019695]
[1723303529836,0.000831,60708.0,60707.0,1.14419695]
[1723303530039,0.000831,60708.0,60707.0,1.13019695]
[1723303530240,0.000831,60708.0,60707.0,1.29492195]
[1723303530613,0.000831,60708.0,60707.0,1.28092195]
[1723303530840,0.000831,60708.0,60707.0,1.29492195]
[1723303531053,0.000831,60708.0,60707.0,1.30891899]
[1723303532266,0.000831,60708.0,60707.0,1.29491899]
[1723303532512,0.000831,60708.0,60707.0,1.30891899]
[1723303532748,0.000831,60708.0,60707.0,1.29491899]
[1723303533487,0.000831,60708.0,60707.0,1.30891899]
[1723303533905,0.000831,60708.0,60707.0,1.28091899]
[1723303534136,0.000831,60708.0,60707.0,1.29491899]
[1723303534664,0.000831,60708.0,60707.0,1.35691899]
[1723303535649,0.000831,60708.0,60707.0,1.19219399]
[1723303535892,0.000831,60708.0,60707.0,1.17819399]
[1723303536134,0.000831,60708.0,60707.0,1.19219399]
[1723303536408,0.000831,60708.0,60707.0,1.35691899]
[1723303536622,0.000831,60708.0,60707.0,1.19219399]
[1723303537081,0.000831,60708.0,60707.0,1.35691899]
[1723303537306,0.000831,60708.0,60707.0,1.37091899]
[1723303537558,0.000831,60708.0,60707.0,1.20619399]
[1723303538076,0.000831,60708.0,60707.0,1.20541948]
[1723303538320,0.000831,60708.0,60707.0,1.19139686]
[1723303538603,0.000831,60708.0,60707.0,1.17739735]
[1723303539081,0.000831,60708.0,60707.0,1.35612235]
[1723303539826,0.000831,60708.0,60707.0,1.23818453]
[1723303540060,0.000831,60708.0,60707.0,1.37038369]
[1723303540550,0.000831,60708.0,60707.0,1.35638369]
[1723303540770,0.000831,60708.0,60707.0,1.34238369]
[1723303541215,0.000831,60708.0,60707.0,1.35638369]
[1723303541693,0.000831,60708.0,60707.0,1.35644008]
[1723303541927,0.000831,60708.0,60707.0,1.37044008]
[1723303542379,0.000831,60708.0,60707.0,1.35644008]
[1723303542995,0.000831,60708.0,60707.0,1.19171508]
[1723303543321,0.000831,60708.0,60707.0,1.20571508]
[1723303543556,0.000831,60708.0,60707.0,1.34244008]
[1723303543840,0.000831,60708.0,60707.0,1.20571508]
[1723303544552,0.000831,60708.0,60707.0,1.12971508]
[1723303544988,0.000831,60708.0,60707.0,1.03791508]
[1723303545233,0.000831,60708.0,60707.0,0.91965953]
[1723303545476,0.000831,60708.0,60707.0,1.05178334]
[1723303546141,0.000831,60708.0,60707.0,0.80469634]
[1723303546390,0.000831,60708.0,60707.0,0.90105834]
[1723303546611,0.000831,60708.0,60707.0,0.62688142]
[1723303547059,0.00375248,60708.0,60707.0,0.64620791]
[1723303547313,0.00375248,60708.0,60707.0,0.5140841]
[1723303547568,0.00375248,60708.0,60707.0,0.53675761]
[1723303547787,0.00375248,60708.0,60707.0,0.7371276]
[1723303548021,0.00375248,60708.0,60707.0,1.06566752]
[1723303548256,0.00375248,60708.0,60707.0,1.14096752]
[1723303548257,0.000831,60708.0,60707.0,1.14096752]
[1723303548725,0.000831,60708.0,60707.0,1.1272281]
[1723303549201,0.000831,60708.0,60707.0,1.05192897]
[1723303549434,0.000831,60708.0,60707.0,0.88720397]
[1723303549908,0.000831,60708.0,60707.0,0.87853046]
[1723303550348,0.000831,60708.0,60707.0,0.89253046]
[1723303550798,0.000831,60708.0,60707.0,1.06592897]
[1723303551032,0.000831,60708.0,60707.0,1.44478046]
[1723303552131,0.000831,60708.0,60707.0,1.32651102]
[1723303552289,0.000831,60708.0,60707.0,1.4450525]
[1723303555750,0.000831,60708.0,60707.0,1.4450846]
[1723303559448,0.000831,60708.0,60707.0,1.3659528]
[1723303562209,0.000831,60708.0,60707.0,1.36616792]
[1723303563302,0.000831,60708.0,60707.0,1.44498901]
[1723303564604,0.000831,60708.0,60707.0,1.69779112]
[1723303564805,0.000831,60708.0,60707.0,2.33110795]
[1723303565034,0.000832,60710.0,60709.0,0.76609351]
[1723303565162,0.000832,60710.0,60709.0,2.0434894]
[1723303565361,0.000832,60710.0,60709.0,2.2082094]
[1723303565565,0.000832,60710.0,60709.0,2.01257805]
[1723303566408,0.000832,60710.0,60709.0,2.23107817]
[1723303566844,0.000832,60710.0,60709.0,2.73965669]
[1723303567253,0.000832,60710.0,60709.0,2.52115657]
[1723303567656,0.000832,60710.0,60709.0,2.53515657]
[1723303567882,0.000832,60710.0,60709.0,2.74615657]
[1723303568870,0.000832,60710.0,60709.0,2.7200115]
[1723303569200,0.000832,60711.0,60710.0,1.09551651]
[1723303569403,0.09294646,60734.0,60733.0,0.76386551]
[1723303569556,0.0111,60734.0,60733.0,1.52663835]
[1723303569755,0.01426291,60734.0,60733.0,1.52663835]
[1723303570109,0.0111,60734.0,60733.0,1.52663835]
[1723303571487,0.0111,60734.0,60733.0,1.52063835]
[1723303571701,0.0111,60734.0,60733.0,1.55463835]
[1723303572136,0.0111,60734.0,60733.0,1.53463835]
[1723303572561,0.0111,60734.0,60733.0,1.42965043]
[1723303572735,0.0111,60734.0,60733.0,1.36445043]
[1723303573965,0.011931,60734.0,60733.0,1.36445043]
[1723303575472,0.011931,60734.0,60733.0,1.35577692]
[1723303575646,0.011931,60734.0,60733.0,1.36445043]
[1723303581539,0.011931,60734.0,60733.0,1.28575043]
[1723303584381,0.087331,60734.0,60733.0,1.11109543]
[1723303585194,0.011931,60734.0,60733.0,1.11109543]
[1723303587693,0.011931,60734.0,60733.0,0.94644043]
[1723303587895,0.153031,60734.0,60733.0,0.53564351]
[1723303588102,0.235357,60734.0,60733.0,0.53564351]
[1723303588297,0.23855344,60734.0,60733.0,0.53564351]
[1723303588500,0.15622744,60734.0,60733.0,0.53564351]
[1723303588911,0.15622744,60734.0,60733.0,0.75378543]
[1723303589456,0.153031,60734.0,60733.0,0.78178543]
[1723303589655,0.153031,60734.0,60733.0,0.76778543]
[1723303589887,0.141931,60734.0,60733.0,0.76778543]
[1723303590836,0.141931,60734.0,60733.0,0.76378543]
[1723303591040,0.141931,60734.0,60733.0,0.75378543]
[1723303591241,0.141931,60734.0,60733.0,0.76278543]
[1723303591490,0.141931,60734.0,60733.0,0.76511192]
[1723303591848,0.141931,60734.0,60733.0,0.77378543]
[1723303592456,0.000831,60734.0,60733.0,0.76511192]
[1723303592668,0.000831,60734.0,60733.0,0.77378543]
[1723303593067,0.000831,60734.0,60733.0,0.76511192]
[1723303593328,0.000831,60734.0,60733.0,0.77378543]
[1723303593920,0.000831,60734.0,60733.0,0.76511192]
[1723303597452,0.000831,60734.0,60733.0,0.77378543]
[1723303598151,0.000831,60734.0,60733.0,0.76511192]
[1723303599116,0.000831,60734.0,60733.0,0.77378543]
[1723303599322,0.079631,60734.0,60733.0,0.52764351]
[1723303599542,0.14472744,60734.0,60733.0,0.52764351]
[1723303600205,0.14472744,60734.0,60733.0,0.51664351]
[1723303600970,0.55635744,60734.0,60733.0,0.50764351]
[1723303601370,0.63515744,60734.0,60733.0,0.50797]
[1723303601567,0.63515744,60734.0,60733.0,0.51897]
[1723303602009,0.65815744,60734.0,60733.0,0.51897]
[1723303602681,0.65815744,60734.0,60733.0,0.52764351]
[1723303602852,0.654961,60734.0,60733.0,0.51897]
[1723303603108,0.654961,60734.0,60733.0,0.52764351]
[1723303605105,0.65868973,60734.0,60733.0,0.52764351]
[1723303605936,0.65868973,60734.0,60733.0,0.51897]
[1723303606697,0.654961,60734.0,60733.0,0.51897]
[1723303607123,0.000831,60734.0,60733.0,0.51897]
[1723303607320,0.000831,60734.0,60733.0,0.68278492]
[1723303607648,0.083157,60734.0,60733.0,0.68278492]
[1723303608078,0.000831,60734.0,60733.0,0.69145843]
[1723303608843,0.000831,60734.0,60733.0,0.68278492]
[1723303609090,0.000831,60734.0,60733.0,0.69145843]
[1723303609366,0.000831,60734.0,60733.0,0.68278492]
[1723303609568,0.000831,60734.0,60733.0,0.69145843]
[1723303609945,0.000831,60734.0,60733.0,0.68278492]
[1723303610854,0.083157,60734.0,60733.0,0.68278492]
[1723303611063,0.000831,60734.0,60733.0,0.68278492]
[1723303612101,0.00458126,60734.0,60733.0,0.68278492]
[1723303612305,0.00458126,60734.0,60733.0,0.69145843]
[1723303612634,0.00458126,60734.0,60733.0,0.68278492]
[1723303612801,0.00458126,60734.0,60733.0,0.69145843]
[1723303614288,0.08690726,60734.0,60733.0,0.68278492]
[1723303617776,0.00458126,60734.0,60733.0,0.82008492]
[1723303617986,0.00458126,60734.0,60733.0,0.91108543]
[1723303618187,0.000831,60734.0,60733.0,0.82875843]
[1723303618534,0.00458435,60734.0,60733.0,0.82875843]
[1723303618736,0.000831,60734.0,60733.0,0.82875843]
[1723303619599,0.000831,60734.0,60733.0,0.82008492]
[1723303619925,0.000831,60734.0,60733.0,0.90241192]
[1723303620120,0.000831,60734.0,60733.0,0.91108543]
[1723303620546,0.000831,60734.0,60733.0,0.82875843]
[1723303621087,0.083157,60734.0,60733.0,0.69145843]
[1723303621287,0.083157,60734.0,60733.0,0.52764351]
[1723303621288,0.161957,60734.0,60733.0,0.52764351]
[1723303621502,0.247809,60734.0,60733.0,0.52764351]
[1723303626107,0.000831,60734.0,60733.0,0.52764351]
[1723303626313,0.000831,60734.0,60733.0,0.91108543]
[1723303626517,0.000831,60734.0,60733.0,1.33744756]
[1723303627082,0.000831,60734.0,60733.0,1.52203199]
[1723303627417,0.000831,60734.0,60733.0,1.35724078]
[1723303627621,0.000831,60734.0,60733.0,1.36824078]
[1723303627827,0.000831,60734.0,60733.0,1.51289578]
[1723303628025,0.000831,60734.0,60733.0,1.34131057]
[1723303628183,0.000831,60734.0,60733.0,1.35531057]
[1723303629426,0.000831,60734.0,60733.0,1.51996557]
[1723303630332,0.000831,60734.0,60733.0,1.51129206]
[1723303630536,0.000831,60734.0,60733.0,1.51996557]
[1723303633075,0.000831,60734.0,60733.0,1.53996557]
[1723303633281,0.000831,60734.0,60733.0,1.51129206]
[1723303633491,0.000831,60734.0,60733.0,1.51996557]
[1723303634289,0.000831,60734.0,60733.0,1.50596557]
[1723303634493,0.000831,60734.0,60733.0,1.49196557]
[1723303634695,0.000831,60734.0,60733.0,1.16665557]
[1723303634869,0.000831,60734.0,60733.0,1.08374043]
[1723303635096,0.000871,60734.0,60733.0,1.08374043]
[1723303635724,0.000871,60734.0,60733.0,1.24839543]
[1723303635939,0.000871,60734.0,60733.0,1.3454964]
[1723303636125,0.000871,60734.0,60733.0,1.33149384]
[1723303636779,0.000871,60734.0,60733.0,1.30882033]
[1723303636953,0.000871,60734.0,60733.0,1.31723635]
[1723303637098,0.000871,60734.0,60733.0,1.33123635]
[1723303637300,0.000871,60734.0,60733.0,1.23439543]
[1723303637522,0.000871,60734.0,60733.0,1.34513233]
[1723303639834,0.000871,60734.0,60733.0,0.63238041]
[1723303640042,0.32969546,60734.0,60733.0,0.53564351]
[1723303640277,0.32969546,60734.0,60733.0,0.52697]
[1723303640467,0.3334307,60734.0,60733.0,0.52697]
[1723303640672,0.4980827,60734.0,60733.0,0.52697]
[1723303641003,0.3334307,60734.0,60733.0,0.51297]
[1723303641379,0.3334307,60734.0,60733.0,0.49897]
[1723303641916,0.3334307,60734.0,60733.0,0.52764351]
[1723303642117,0.3334307,60734.0,60733.0,0.51664351]
[1723303642329,0.3334307,60734.0,60733.0,0.51797]
[1723303642551,0.25158424,60734.0,60733.0,0.50797]
[1723303643233,0.08693224,60734.0,60733.0,0.50764351]
[1723303643677,0.08693224,60734.0,60733.0,0.51564351]
[1723303644159,0.08693224,60734.0,60733.0,0.50997]
[1723303644392,0.08693224,60734.0,60733.0,0.50797]
[1723303644608,0.08693224,60734.0,60733.0,0.52764351]
[1723303644844,0.08693224,60734.0,60733.0,0.50797]
[1723303645069,0.08693224,60734.0,60733.0,0.49897]
[1723303645275,0.08693224,60734.0,60733.0,0.50997]
[1723303646443,0.08693224,60734.0,60733.0,0.51864351]
[1723303646649,0.08693224,60734.0,60733.0,0.51897]
[1723303646849,0.25158424,60734.0,60733.0,0.51897]
[1723303647240,0.25158424,60734.0,60733.0,0.50997]
[1723303647444,0.25158424,60734.0,60733.0,0.49897]
[1723303647658,0.25158424,60734.0,60733.0,0.50797]
[1723303647817,0.25158424,60734.0,60733.0,0.51897]
[1723303648038,0.247849,60734.0,60733.0,0.50997]
[1723303648523,0.247849,60734.0,60733.0,0.51897]
[1723303648718,0.247849,60734.0,60733.0,0.50797]
[1723303648938,0.247849,60734.0,60733.0,0.52764351]
[1723303650151,0.247849,60734.0,60733.0,0.51864351]
[1723303650363,0.247849,60734.0,60733.0,0.52764351]
[1723303650772,0.247849,60734.0,60733.0,0.50797]
[1723303650969,0.247849,60734.0,60733.0,0.50764351]
[1723303651294,0.247849,60734.0,60733.0,0.50797]
[1723303651492,0.247849,60734.0,60733.0,0.51897]
[1723303651690,0.247849,60734.0,60733.0,0.51664351]
[1723303651911,0.247849,60734.0,60733.0,0.50764351]
[1723303652092,0.247849,60734.0,60733.0,0.51864351]
[1723303652297,0.083197,60734.0,60733.0,0.50764351]
[1723303652524,0.083197,60734.0,60733.0,0.58354351]
[1723303652695,0.083197,60734.0,60733.0,0.59454351]
[1723303653379,0.083197,60734.0,60733.0,0.60354351]
[1723303653792,0.083197,60734.0,60733.0,0.59454351]
[1723303654057,0.083197,60734.0,60733.0,0.60354351]
[1723303654058,0.247849,60734.0,60733.0,0.60354351]
[1723303654506,0.247849,60734.0,60733.0,0.59454351]
[1723303654736,0.247849,60734.0,60733.0,0.58354351]
[1723303654952,0.247849,60734.0,60733.0,0.60354351]
[1723303655402,0.247849,60734.0,60733.0,0.59254351]
[1723303655609,0.247849,60734.0,60733.0,0.60354351]
[1723303655824,0.000871,60734.0,60733.0,0.82045843]
[1723303656266,0.000871,60734.0,60733.0,0.83145843]
[1723303656464,0.000871,60734.0,60733.0,0.82245843]
[1723303656672,0.000871,60734.0,60733.0,0.83145843]
[1723303657069,0.000871,60734.0,60733.0,0.68278492]
[1723303657268,0.000871,60734.0,60733.0,0.67378492]
[1723303657481,0.000871,60734.0,60733.0,0.68278492]
[1723303657853,0.000871,60734.0,60733.0,0.67178492]
[1723303658194,0.000871,60734.0,60733.0,0.67378492]
[1723303658412,0.000871,60734.0,60733.0,0.67178492]
[1723303658944,0.000871,60734.0,60733.0,0.51664351]
[1723303658945,0.49434746,60734.0,60733.0,0.51664351]
[1723303659146,0.64044746,60734.0,60733.0,0.52764351]
[1723303659409,0.64044746,60734.0,60733.0,0.51664351]
[1723303659564,0.64044746,60734.0,60733.0,0.50764351]
[1723303659951,0.64044746,60734.0,60733.0,0.51664351]
[1723303660466,0.393949,60734.0,60733.0,0.50764351]
[1723303660869,0.393949,60734.0,60733.0,0.51864351]
[1723303661071,0.558601,60734.0,60733.0,0.51864351]
[1723303661274,0.558601,60734.0,60733.0,0.51664351]
[1723303661976,0.558601,60734.0,60733.0,0.52764351]
[1723303662549,0.495301,60734.0,60733.0,0.51897]
[1723303662832,0.495301,60734.0,60733.0,0.52764351]
[1723303663817,0.412501,60734.0,60733.0,0.52764351]
[1723303664075,0.247849,60734.0,60733.0,0.52764351]
[1723303669722,0.000871,60734.0,60733.0,0.52764351]
[1723303669897,0.000871,60734.0,60733.0,0.60354351]
[1723303670725,0.083197,60734.0,60733.0,0.60354351]
[1723303674764,0.000871,60734.0,60733.0,0.60354351]
[1723303675222,0.083197,60734.0,60733.0,0.52764351]
[1723303677624,0.083197,60734.0,60733.0,0.51897]
[1723303677837,0.000871,60734.0,60733.0,0.52764351]
[1723303679193,0.000871,60734.0,60733.0,1.4220762]
[1723303679407,0.000871,60734.0,60733.0,1.6167312]
[1723303679652,0.000871,60734.0,60733.0,1.88327525]
[1723303679925,0.000871,60734.0,60733.0,2.2418858]
[1723303680137,0.000871,60734.0,60733.0,2.03283328]
[1723303680343,0.000871,60734.0,60733.0,2.25006897]
[1723303680598,0.000871,60734.0,60733.0,2.1208604]
[1723303680813,0.000871,60734.0,60733.0,2.26406897]
[1723303681031,0.000871,60734.0,60733.0,2.1208604]
[1723303681224,0.000871,60734.0,60733.0,2.25006897]
[1723303681381,0.000871,60734.0,60733.0,2.1348604]
[1723303681581,0.000871,60734.0,60733.0,2.24739546]
[1723303681793,0.000871,60734.0,60733.0,2.1488604]
[1723303682199,0.000871,60734.0,60733.0,2.1348604]
[1723303682397,0.000871,60734.0,60733.0,2.11808354]
[1723303682597,0.000871,60734.0,60733.0,2.15851542]
[1723303683013,0.000831,60741.0,60740.0,0.02367351]
[1723303683169,0.000831,60741.0,60740.0,1.71584467]
[1723303683383,0.000831,60741.0,60740.0,1.7841962]
[1723303683585,0.000831,60741.0,60740.0,1.9539524]
[1723303683878,0.000831,60741.0,60740.0,2.1185884]
[1723303684446,0.000831,60741.0,60740.0,2.25563203]
[1723303684642,0.000831,60741.0,60740.0,1.94772647]
[1723303685020,0.000831,60741.0,60740.0,1.97572647]
[1723303685655,0.000831,60741.0,60740.0,1.96172647]
[1723303685881,0.000831,60741.0,60740.0,1.97175645]
[1723303686062,0.000831,60741.0,60740.0,2.08614636]
[1723303686235,0.000831,60759.0,60749.0,0.868738]
[1723303686418,0.000831,60759.0,60749.0,1.68595608]
[1723303686624,0.000831,60759.0,60749.0,1.71462959]
[1723303686852,0.000831,60759.0,60749.0,1.68595608]
[1723303687072,0.000831,60759.0,60749.0,1.69462959]
[1723303687292,0.000831,60759.0,60749.0,1.68595608]
[1723303687704,0.000831,60759.0,60749.0,1.70862959]
[1723303688094,0.000831,60759.0,60758.0,0.42514051]
[1723303688293,0.000831,60759.0,60758.0,1.22741543]
[1723303688495,0.000831,60759.0,60758.0,1.39200243]
[1723303688722,0.000831,60759.0,60758.0,1.38332892]
[1723303689516,0.520831,60759.0,60758.0,1.39532892]
[1723303689721,0.520831,60759.0,60758.0,1.3993744]
[1723303690347,0.520831,60759.0,60758.0,1.4133744]
[1723303690972,0.520831,60759.0,60758.0,1.40932892]
[1723303691119,0.000831,60759.0,60758.0,1.40932892]
[1723303691525,0.000831,60759.0,60758.0,1.41800243]
[1723303691927,0.000831,60759.0,60758.0,1.25341543]
[1723303692128,0.500831,60759.0,60758.0,0.94412843]
[1723303692348,0.500831,60759.0,60758.0,0.93212843]
[1723303692872,0.500831,60759.0,60758.0,0.94412843]
[1723303693088,0.500831,60759.0,60758.0,0.93012843]
[1723303693488,0.500831,60759.0,60758.0,0.94412843]
[1723303694251,0.500831,60759.0,60758.0,0.93012843]
[1723303694457,0.500831,60759.0,60758.0,0.94412843]
[1723303694676,0.500831,60759.0,60758.0,0.93212843]
[1723303695094,0.500831,60759.0,60758.0,0.94412843]
[1723303695527,0.500831,60759.0,60758.0,0.92345492]
[1723303695733,0.500831,60759.0,60758.0,0.93212843]
[1723303695935,0.500831,60759.0,60758.0,0.94412843]
[1723303696292,0.500831,60759.0,60758.0,0.93012843]
[1723303696716,0.500831,60759.0,60758.0,0.94412843]
[1723303699201,0.500831,60759.0,60758.0,0.77954143]
[1723303699820,0.500831,60759.0,60758.0,0.94412843]
[1723303700718,0.500831,60759.0,60758.0,1.02222843]
[1723303700918,0.500831,60759.0,60758.0,1.01355492]
[1723303701727,0.500831,60759.0,60758.0,1.17814192]
[1723303702181,0.500831,60759.0,60758.0,1.18681543]
[1723303705790,0.500831,60759.0,60758.0,1.26551543]
[1723303706984,0.500831,60759.0,60758.0,1.25151543]
[1723303707228,0.500831,60759.0,60758.0,1.25351543]
[1723303708187,0.500831,60759.0,60758.0,1.26751543]
[1723303709147,0.500831,60759.0,60758.0,1.10292843]
[1723303709394,0.500831,60759.0,60758.0,0.94612843]
[1723303709621,0.500831,60759.0,60758.0,0.8772691]
[1723303709869,0.500831,60759.0,60758.0,0.78154143]
[1723303710097,0.500831,60759.0,60758.0,0.94612843]
[1723303710557,0.500831,60759.0,60758.0,0.93212843]
[1723303710810,0.500831,60759.0,60758.0,0.75354143]
[1723303711043,0.500831,60759.0,60758.0,0.78154143]
[1723303713690,0.500831,60759.0,60758.0,0.87693581]
[1723303714911,0.500831,60759.0,60758.0,0.78154143]
[1723303715825,0.500831,60759.0,60758.0,0.94612843]
[1723303715988,0.500831,60759.0,60758.0,1.04159407]
[1723303717728,0.500831,60759.0,60758.0,1.35998107]
[1723303717870,0.500831,60759.0,60758.0,1.59566807]
[1723303718075,0.000831,60759.0,60758.0,1.61566807]
[1723303718511,0.000831,60759.0,60758.0,1.60166807]
[1723303718725,0.000831,60759.0,60758.0,1.58766807]
[1723303718926,0.000831,60759.0,60758.0,1.60166807]
[1723303719126,0.000831,60759.0,60758.0,1.60189968]
[1723303719417,0.000831,60759.0,60758.0,1.58789968]
[1723303719640,0.000831,60759.0,60758.0,1.49220243]
[1723303719838,0.000831,60759.0,60758.0,1.58789861]
[1723303720059,0.000831,60759.0,60758.0,1.60191267]
[1723303720663,0.000831,60759.0,60758.0,1.6702466]
[1723303721241,0.000831,60759.0,60758.0,1.6842466]
[1723303721481,0.000831,60759.0,60758.0,1.6562466]
[1723303721864,0.000831,60759.0,60758.0,1.6842466]
[1723303723168,0.000831,60759.0,60758.0,1.65557309]
[1723303723596,0.000831,60759.0,60758.0,1.6842466]
[1723303725061,0.000831,60759.0,60758.0,1.95685269]
[1723303725246,0.000871,60759.0,60758.0,1.95885269]
[1723303725454,0.000871,60759.0,60758.0,2.12967964]
[1723303726097,0.000871,60759.0,60758.0,2.0315629]
[1723303726303,0.000871,60759.0,60758.0,2.0320905]
[1723303726714,0.000871,60759.0,60758.0,2.0180905]
[1723303726970,0.000871,60759.0,60758.0,2.0040905]
[1723303727151,0.000871,60759.0,60758.0,2.0320905]
[1723303727356,0.000871,60759.0,60758.0,2.11662996]
[1723303727530,0.000871,60759.0,60758.0,2.0180905]
[1723303727758,0.000871,60759.0,60758.0,2.14126067]
[1723303728078,0.000871,60759.0,60758.0,2.0320905]
[1723303729688,0.000871,60759.0,60758.0,1.86139342]
[1723303729876,0.000871,60759.0,60758.0,2.03221208]
[1723303730078,0.000871,60759.0,60758.0,2.15539585]
[1723303730286,0.000871,60759.0,60758.0,2.05902531]
[1723303730479,0.000871,60759.0,60758.0,2.03224046]